[Event "Guimaraes Open 2018"]
[Site "Guimaraes"]
[Date "2018.10.07"]
[Round "6"]
[White "Veiga, Jose Francisco Reis"]
[Black "Suarez Uriel, Adrian"]
[Result "1-0"]
[ECO "C41"]
[WhiteElo "2272"]
[BlackElo "2394"]
[Annotator "NA"]
[PlyCount "85"]
[EventDate "2018.10.04"]
[EventType "swiss"]
[EventCountry "POR"]
[SourceTitle "playchess.com"]
[Source "ChessBase"]
[SourceQuality "1"]
[TimeControl "5400+30"]

{[%evp 12,85,33,31,32767,32767,32767,32767,32767,14,25,2,32767,1,15,4,19,32767,61,66,71,54,74,75,78,51,32767,32767,32767,94,32767,32767,32767,32767,32767,128,135,135,171,162,153,138,162,173,32767,160,220,32767,32767,32767,32767,731,710,872,48,32767,32767,32767,32767,852,792,484,787,917,878,656,616,657,709,32767,32767,32767,32767,824,29992,29990]} 1. e4 {[%emt 0:00:00]} d6 {[%emt 0:01:19]} 2. d4 {[%emt 0:00:00]} Nf6 {[%emt 0:00:04]} 3. Nc3 {[%emt 0:00:00]} e5 {[%emt 0:00:03]} 4. Nf3 {[%emt 0:00:05]} Nbd7 {[%emt 0:00:03]} 5. Bc4 {[%emt 0:00:15]} Be7 {[%emt 0:00:03]} 6. O-O {[%emt 0:00:07]} O-O {[%emt 0:00:18]} 7. Re1 {[%emt 0:00:34]} c6 {[%emt 0:00:05]} 8. a4 {[%emt 0:00:13]} h6 {[%emt 0:00:10]} 9. b3 {[%emt 0:00:26] C41: Philidor Defence} (9. h3 Re8 10. Ba2 Qc7 11. Nh4 exd4 12. Qxd4 Nf8 13. Qd3 Be6 14. Bxe6 Nxe6 15. Nf5 Bf8 16. Qf3 Nd7 17. Be3 Ne5 {1-0 (59) Grischuk,A (2764)-Jobava,B (2711) Beijing 2012}) 9... Qc7 {[%emt 0:00:07]} 10. Bb2 {[%emt 0:00:22]} Re8 {[%emt 0:00:07]} 11. Qd2 {[%emt 0:01:53]} Nf8 {[%emt 0:00:36]} 12. h3 {[%emt 0:02:59]} Ng6 {[%emt 0:00:10]} 13. Rad1 {[%emt 0:06:38] LiveBook: 4 Games} Bf8 {[%emt 0:07:49]} 14. d5 {[%emt 0:02:20]} c5 $146 {[%emt 0:03:37]} (14... Rd8 $11) ({Predecessor:} 14... a6 15. Ra1 Nf4 16. a5 cxd5 17. Nxd5 N6xd5 18. exd5 {1-0 (47) Poetz,F (2427)-Ager,J (2151) Feistritz an der Drau 2014}) 15. Bb5 {[%emt 0:01:56]} Rd8 {[%emt 0:01:00]} 16. Bf1 {[%emt 0:00:17]} Nf4 {[%emt 0:00:08]} 17. Kh2 {[%emt 0:01:12]} Qd7 {[%emt 0:00:36]} 18. Bb5 {[%emt 0:00:29]} Qe7 {[%emt 0:01:33]} 19. Bf1 {[%emt 0:00:11]} g5 {[%emt 0:12:48]} 20. g3 {[%emt 0:03:04]} Ng6 {[%emt 0:00:35]} 21. Qe2 {[%emt 0:00:52]} Nh7 {[%emt 0:00:11]} 22. Nd2 {[%emt 0:01:04]} h5 {[%emt 0:02:16]} 23. Nc4 {[%emt 0:15:20]} g4 {[%emt 0:00:13]} 24. Ne3 {[%emt 0:01:18]} Qf6 {[%emt 0:09:23]} 25. hxg4 {[%emt 0:06:49]} hxg4 {[%emt 0:00:07] [#]} 26. Bg2 $1 {[%emt 0:07:21]} ({And not} 26. Nxg4 Bxg4 27. Qxg4 Qxf2+ 28. Bg2 Qxc2 $11) 26... Qg5 {[%emt 0:07:12] [#]} 27. Rh1 $1 {[%emt 0:01:46]} ({Resist} 27. Kg1 $6 Bd7 $16) 27... Nf4 {[%emt 0:01:25]} 28. gxf4 {[%emt 0:00:28]} exf4 {[%emt 0:00:01]} 29. Nxg4 {[%emt 0:01:29]} Bxg4 {[%emt 0:00:02]} 30. Bf3 {[%emt 0:00:23]} f5 {[%emt 0:04:06]} 31. Rdg1 {[%emt 0:02:38]} ({Less strong is} 31. Bxg4 fxg4 32. Kg1 Qg6 $14) 31... Nf6 {[%emt 0:04:13]} 32. exf5 {[%emt 0:00:07]} ({Not} 32. Kg2 Re8 $18) 32... Qh5+ {[%emt 0:03:44]} 33. Kg2 {[%emt 0:00:06]} Bxf3+ {[%emt 0:00:15]} 34. Kf1+ {[%emt 0:09:48]} Bg7 {[%emt 0:00:04]} 35. Qe6+ {[%emt 0:00:08]} Qf7 {[%emt 0:00:06] [#]} 36. Rh8+ $1 {[%emt 0:00:09]} Kxh8 {[%emt 0:00:08]} 37. Qxf7 {[%emt 0:00:07]} Rd7 {[%emt 0:00:05]} 38. Rxg7 {[%emt 0:00:57]} Rxf7 {[%emt 0:00:05]} 39. Rxf7 {[%emt 0:00:05]} Ng4 {[%emt 0:01:13]} 40. Ne4+ {[%emt 0:01:07]} Kg8 {[%emt 0:00:02]} 41. Rg7+ {[%emt 0:00:13]} Kf8 {[%emt 0:00:00]} 42. Ng5 {[%emt 0:00:27]} Ne5 {[%emt 0:01:30]} 43. Bxe5 {[%emt 0:00:09]} 1-0

[Event "Guimaraes Open 2018"]
[Site "Guimaraes"]
[Date "2018.10.07"]
[Round "6"]
[White "Frois, Antonio"]
[Black "Abella Vazquez, Cesar"]
[Result "1-0"]
[ECO "A08"]
[WhiteElo "2267"]
[BlackElo "2120"]
[Annotator "NA"]
[PlyCount "75"]
[EventDate "2018.10.04"]
[EventType "swiss"]
[EventCountry "POR"]
[SourceTitle "playchess.com"]
[Source "ChessBase"]
[SourceQuality "1"]
[TimeControl "5400+30"]

1. Nf3 e6 2. g3 Nf6 3. Bg2 d5 4. O-O Be7 5. d3 O-O 6. Nbd2 c5 7. e4 Nc6 8. Re1 b5 9. e5 Nd7 10. Nf1 a5 11. h4 b4 12. Bf4 a4 13. a3 bxa3 14. bxa3 {LiveBook: 46 Games} Rb8 15. N1h2 {C00: French: Unusual White 2nd moves} (15. Bh3 Bb7 16. N1h2 Re8 17. Ng5 Bxg5 18. hxg5 Ne7 19. Qh5 d4 20. Ng4 Nf5 21. Nf6+ gxf6 22. gxf6 Kh8 {0-1 (36) Haddouche,M (2505)-Van Wely,L (2654) Rabat 2014}) 15... Re8 16. h5 $146 ({Predecessor:} 16. Ng5 Bxg5 17. hxg5 Ne7 18. Qh5 Nf5 {1-0 (27) Omurbekova,D (1868)-Sotomayor Villatoro,S (1876) Baku 2016}) 16... Nd4 17. Nxd4 cxd4 18. Qg4 Kh8 19. h6 g6 20. Nf3 Qc7 21. Bg5 Bf8 (21... Bc5 $16) 22. Qf4 Kg8 23. Bh4 $11 f5 24. exf6 Qxf4 25. gxf4 Bxh6 26. Nxd4 Kf7 27. Nc6 Rb6 28. Ne5+ Nxe5 29. fxe5 Ba6 30. c4 dxc4 31. dxc4 Bxc4 32. Red1 Rf8 33. Rd7+ Kg8 34. Rad1 Bb5 35. Re7 Bf4 36. Bg3 Bh6 37. Bh3 Bc4 38. Rdd7 1-0

[Event "Guimaraes Open 2018"]
[Site "Guimaraes"]
[Date "2018.10.07"]
[Round "6"]
[White "Rego, Pedro Filipe Pinho"]
[Black "Oliveira, Maria Alice Ramos M"]
[Result "1-0"]
[ECO "B40"]
[WhiteElo "2251"]
[BlackElo "1545"]
[Annotator "NA"]
[PlyCount "103"]
[EventDate "2018.10.04"]
[EventType "swiss"]
[EventCountry "POR"]
[SourceTitle "playchess.com"]
[Source "ChessBase"]
[SourceQuality "1"]
[TimeControl "5400+30"]

1. e4 {[%emt 0:00:29]} c5 {[%emt 0:00:00]} 2. Nf3 {[%emt 0:00:18]} e6 {[%emt 0:00:00]} 3. b3 {[%emt 0:01:34]} Nc6 {[%emt 0:03:39]} 4. Bb2 {[%emt 0:00:07]} d6 {[%emt 0:01:24]} 5. Bb5 {[%emt 0:00:39]} Bd7 {[%emt 0:01:53]} 6. O-O {[%emt 0:00:17]} Nf6 {[%emt 0:01:15] LiveBook: 80 Games} 7. Re1 {[%emt 0:00:07]} Be7 {[%emt 0:02:09]} 8. d4 {[%emt 0:11:09]} cxd4 {[%emt 0:11:12]} 9. Nxd4 {[%emt 0:00:18]} Nxd4 {[%emt 0:02:09]} 10. Bxd7+ {[%emt 0:00:04]} Qxd7 {[%emt 0:00:31]} 11. Qxd4 {[%emt 0:00:31]} O-O {[%emt 0:01:03]} 12. c4 {[%emt 0:00:27]} Rfd8 {[%emt 0:02:45]} 13. Nc3 {[%emt 0:00:34]} Ne8 {[%emt 0:07:18]} 14. Rad1 {[%emt 0:00:23]} Qc6 {[%emt 0:01:30]} 15. Qd3 $146 {[%emt 0:22:07] B52: Sicilian: Moscow Variation with 3...Bd7} ({Predecessor:} 15. Qe3 Bf6 16. Qg3 Rd7 17. h3 a6 18. Qd3 Rad8 19. Re2 Nc7 20. a4 Bxc3 21. Qxc3 e5 22. f3 Ne6 {½-½ (91) Bernard,B (2316)-Korinek,O (2262) Czechia 2008}) 15... Bf6 {[%emt 0:05:05]} 16. Na4 {[%emt 0:05:07]} Bxb2 {[%emt 0:06:57]} 17. Nxb2 {[%emt 0:00:04]} Nc7 {[%emt 0:01:27]} 18. Re3 {[%emt 0:04:11]} d5 {[%emt 0:06:07]} 19. exd5 {[%emt 0:23:28]} exd5 {[%emt 0:00:08]} 20. Rh3 {[%emt 0:04:53]} h6 {[%emt 0:07:09]} 21. Qe2 {[%emt 0:04:34]} dxc4 {[%emt 0:04:12]} 22. Nxc4 $11 {[%emt 0:01:23]} Ne6 {[%emt 0:11:29]} 23. Rg3 {[%emt 0:06:56]} Nf4 {[%emt 0:09:29]} 24. Qg4 {[%emt 0:02:17]} Rxd1+ {[%emt 0:01:40]} 25. Qxd1 {[%emt 0:00:03]} Re8 {[%emt 0:00:40]} 26. Ne3 {[%emt 0:02:24]} Qf6 {[%emt 0:05:47]} 27. h3 {[%emt 0:02:58]} Qb2 {[%emt 0:04:51]} 28. Rg4 {[%emt 0:02:49]} Ng6 {[%emt 0:01:07]} 29. a4 {[%emt 0:01:10]} Rc8 {[%emt 0:00:23]} 30. Rc4 {[%emt 0:00:09]} Rxc4 {[%emt 0:00:29]} 31. Nxc4 {[%emt 0:00:05]} Qf6 {[%emt 0:00:19]} 32. Qd6 {[%emt 0:00:45]} Qf4 {[%emt 0:00:45]} 33. Qxf4 {[%emt 0:01:18]} Nxf4 {[%emt 0:00:04]} 34. Kf1 {[%emt 0:01:04]} Kf8 {[%emt 0:01:11]} 35. Nd6 {[%emt 0:00:08]} b6 {[%emt 0:00:32]} 36. Nc8 {[%emt 0:00:13]} Nd3 {[%emt 0:00:28]} 37. Nxa7 {[%emt 0:00:20]} Nc5 {[%emt 0:00:17]} 38. Nc8 {[%emt 0:00:12]} Nxb3 {[%emt 0:00:22]} 39. Nxb6 {[%emt 0:00:05]} Ke7 {[%emt 0:00:29]} 40. Ke2 {[%emt 0:00:07]} Kd6 41. Nc4+ {[%emt 0:00:43]} Kc5 {[%emt 0:00:51]} 42. Ne3 {[%emt 0:00:50]} Kb4 {[%emt 0:01:14]} 43. Nf5 {[%emt 0:00:13]} Kxa4 {[%emt 0:00:21]} 44. Nxg7 {[%emt 0:00:13]} Nd4+ {[%emt 0:00:31]} 45. Ke3 {[%emt 0:00:08]} Nc6 {[%emt 0:00:16]} 46. Ke4 {[%emt 0:00:27]} Kb5 {[%emt 0:00:23]} 47. Nf5 {[%emt 0:00:19]} h5 {[%emt 0:00:07]} 48. Ng7 {[%emt 0:00:09]} h4 {[%emt 0:00:36]} 49. Nf5 {[%emt 0:00:58]} Kc5 {[%emt 0:00:13]} 50. Nxh4 {[%emt 0:00:12]} Kd6 {[%emt 0:00:11]} 51. Nf5+ {[%emt 0:00:15]} Ke6 {[%emt 0:00:33]} 52. Nd4+ {[%emt 0:00:07] Kd5+} 1-0

[Event "Guimaraes Open 2018"]
[Site "Guimaraes"]
[Date "2018.10.07"]
[Round "6"]
[White "Martins, Bruno Andre Leite"]
[Black "Represa Perez, Mireya"]
[Result "0-1"]
[ECO "B90"]
[WhiteElo "2248"]
[BlackElo "2151"]
[Annotator "NA"]
[PlyCount "62"]
[EventDate "2018.10.04"]
[EventType "swiss"]
[EventCountry "POR"]
[SourceTitle "playchess.com"]
[Source "ChessBase"]
[SourceQuality "1"]
[TimeControl "5400+30"]

{[%evp 11,39,12,32767,32767,0,0,-7,-2,8,0,4,8,0,32767,31,13,0,22,32767,3,0,0,22,24,31,57,49,33,32767,53]} 1. e4 {[%emt 0:01:40]} c5 {[%emt 0:00:00]} 2. Nf3 {[%emt 0:00:14]} d6 {[%emt 0:00:00]} 3. d4 {[%emt 0:00:12]} cxd4 {[%emt 0:00:00]} 4. Nxd4 {[%emt 0:00:08]} Nf6 {[%emt 0:00:00]} 5. Nc3 {[%emt 0:00:09]} a6 {[%emt 0:00:00]} 6. Bd3 {[%emt 0:02:10]} e5 {[%emt 0:03:10]} 7. Nf5 {[%emt 0:00:34] B90: Sicilian Najdorf: Unusual White 6th moves, 6 Be3 Ng4 and 6 Be3 e5} (7. Nde2 Be7 8. O-O O-O 9. Ng3 Be6 10. Nd5 Bxd5 11. exd5 g6 12. Bh6 Re8 13. c4 Nbd7 14. b4 Bf8 15. Bg5 h6 16. Bd2 e4 {½-½ (46) Najer,E (2683)-Wojtaszek,R (2738) Batumi 2018}) 7... Bxf5 {[%emt 0:11:32]} 8. exf5 {[%emt 0:00:29]} d5 {[%emt 0:00:30]} 9. Bg5 {[%emt 0:00:11]} Bb4 {[%emt 0:09:28]} 10. O-O {[%emt 0:02:04]} Bxc3 {[%emt 0:00:59]} 11. bxc3 {[%emt 0:00:21]} O-O {[%emt 0:02:06]} 12. c4 $146 {[%emt 0:03:10]} ({Predecessor:} 12. Re1 h6 13. Bxf6 Qxf6 14. Rb1 Rd8 {0-1 (34) Goepfert,C (628)-Bianshi,J (895) LSS email 2010}) 12... e4 {[%emt 0:14:41]} 13. Be2 {[%emt 0:01:59]} d4 {[%emt 0:01:04]} 14. Rb1 {[%emt 0:04:43]} Nc6 {[%emt 0:00:47]} 15. f3 {[%emt 0:17:33]} e3 {[%emt 0:07:42]} 16. Rxb7 {[%emt 0:08:13]} Qc8 {[%emt 0:07:48]} 17. Rb6 {[%emt 0:04:15]} Nd7 {[%emt 0:00:26]} 18. Rxc6 {[%emt 0:11:45]} Qxc6 {[%emt 0:00:01]} 19. Qxd4 {[%emt 0:00:14]} Rfe8 {[%emt 0:02:34]} 20. Rd1 $14 {[%emt 0:17:17]} Nb6 {[%emt 0:07:01]} 21. f6 {[%emt 0:08:23]} Rac8 {[%emt 0:02:49]} 22. Qh4 {[%emt 0:04:05]} Qc5 {[%emt 0:02:06]} 23. Rd4 {[%emt 0:04:12]} Qa3 {[%emt 0:15:53]} 24. h3 {[%emt 0:03:28]} g6 {[%emt 0:03:07]} 25. Bf4 {[%emt 0:01:18]} h5 {[%emt 0:04:16]} 26. Rd6 {[%emt 0:03:05]} Nxc4 {[%emt 0:01:21]} 27. Bxc4 {[%emt 0:00:48]} Rxc4 {[%emt 0:00:02]} 28. Qg5 {[%emt 0:00:18]} Rxf4 {[%emt 0:00:51]} 29. Qxf4 {[%emt 0:00:24]} e2 {[%emt 0:00:51]} 30. Qh6 {[%emt 0:00:08]} e1=Q+ {[%emt 0:00:06]} 31. Kh2 {[%emt 0:00:16]} Qxd6+ {[%emt 0:00:04]} 0-1

[Event "Guimaraes Open 2018"]
[Site "Guimaraes"]
[Date "2018.10.07"]
[Round "6"]
[White "Pinho, Paulo Miguel Leitao"]
[Black "Machado, Carlos Antonio"]
[Result "1-0"]
[ECO "D83"]
[WhiteElo "2212"]
[BlackElo "1780"]
[Annotator "NA"]
[PlyCount "57"]
[EventDate "2018.10.04"]
[EventType "swiss"]
[EventCountry "POR"]
[SourceTitle "playchess.com"]
[Source "ChessBase"]
[SourceQuality "1"]
[TimeControl "5400+30"]

{[%evp 8,34,32,4,46,29,32767,25,32767,50,75,32767,121,89,32767,74,78,32767,32767,106,117,103,108,106,145,133,620,198,253]} 1. d4 {[%emt 0:18:35]} Nf6 {[%emt 0:00:00]} 2. c4 {[%emt 0:00:18]} g6 {[%emt 0:00:00]} 3. Nc3 {[%emt 0:00:05]} d5 {[%emt 0:01:11]} 4. Bf4 {[%emt 0:00:40]} Bg7 {[%emt 0:01:35]} 5. Rc1 {[%emt 0:00:12] LiveBook: 230 Games} O-O {[%emt 0:00:53]} 6. e3 {[%emt 0:00:10]} c6 {[%emt 0:01:40]} 7. Nf3 {[%emt 0:01:28]} a6 {[%emt 0:14:15] D93: Grünfeld: 4 Nf3 Bg7 5 Bf4 0-0 6 e3} (7... Bg4 8. h3 Bxf3 9. Qxf3 dxc4 10. Bxc4 Nbd7 11. O-O Qa5 12. Qe2 Rfe8 13. Rfd1 e5 14. dxe5 Nxe5 15. Bb3 Rad8 16. e4 Rxd1+ 17. Rxd1 Qb4 18. Bh2 {1-0 (35) Hess,R (2574)-Paragua,M (2512) New York 2018}) 8. h3 {[%emt 0:17:17]} Re8 {[%emt 0:03:31]} 9. Bd3 {[%emt 0:08:01]} Qa5 $146 {[%emt 0:17:27]} ({Predecessor:} 9... Nbd7 10. cxd5 cxd5 11. O-O Nf8 12. Na4 Ne6 13. Be5 b5 14. Nc5 Nxc5 15. Rxc5 {1-0 (23) Roggenstein,B (1879)-Schuler,G (2062) Schwaebisch Gmuend 2006}) 10. O-O {[%emt 0:00:31]} Nbd7 {[%emt 0:01:53]} 11. cxd5 {[%emt 0:00:47]} Nxd5 {[%emt 0:11:28]} 12. Nxd5 {[%emt 0:00:08]} Qxd5 {[%emt 0:00:12]} 13. Bc4 {[%emt 0:01:08]} Qa5 {[%emt 0:00:20]} 14. Ng5 {[%emt 0:02:06]} e6 {[%emt 0:00:38]} 15. Qf3 {[%emt 0:03:10]} h6 {[%emt 0:16:50]} 16. Ne4 {[%emt 0:02:24]} e5 $2 {[%emt 0:00:33] [#]} (16... Qd8 $16 17. Rfd1 Nb6) 17. dxe5 $18 {[%emt 0:08:27]} (17. Bxh6 $1 {[%mdl 512]} Rf8 (17... Bxh6 18. Qxf7+) 18. Qg4 Bxh6 19. Qxg6+ Bg7 20. Rfd1) 17... Re7 {[%emt 0:03:10]} 18. Nd6 {[%emt 0:10:03]} Bxe5 {[%emt 0:00:16]} 19. Nxf7 {[%emt 0:00:32]} Kh7 {[%emt 0:02:27]} 20. Bxe5 {[%emt 0:03:55]} Nxe5 {[%emt 0:00:19]} 21. Qf6 {[%emt 0:00:41]} Re8 {[%emt 0:07:46]} 22. Qf4 {[%emt 0:06:01]} Nxc4 {[%emt 0:04:38]} 23. Qxh6+ {[%emt 0:00:15]} Kg8 {[%emt 0:00:06]} 24. Qxg6+ {[%emt 0:01:56]} Kf8 {[%emt 0:00:09]} 25. Rxc4 {[%emt 0:02:06]} Re6 {[%emt 0:01:33]} 26. Qh7 {[%emt 0:00:22]} Rf6 {[%emt 0:00:38]} 27. Nh6 {[%emt 0:02:23]} Qh5 {[%emt 0:00:15]} 28. Qg8+ {[%emt 0:00:58]} Ke7 {[%emt 0:00:12]} 29. Qg7+ {[%emt 0:00:24]} 1-0

[Event "Guimaraes Open 2018"]
[Site "Guimaraes"]
[Date "2018.10.07"]
[Round "6"]
[White "Fidalgo, Andre Neves"]
[Black "Medarde Santiago, Luis Marcos"]
[Result "1/2-1/2"]
[ECO "A62"]
[WhiteElo "2181"]
[BlackElo "2384"]
[Annotator "NA"]
[PlyCount "79"]
[EventDate "2018.10.04"]
[EventType "swiss"]
[EventCountry "POR"]
[SourceTitle "playchess.com"]
[Source "ChessBase"]
[SourceQuality "1"]
[TimeControl "5400+30"]

1. d4 {[%emt 0:00:00]} Nf6 {[%emt 0:06:30]} 2. c4 {[%emt 0:00:00]} c5 {[%emt 0:01:24]} 3. d5 {[%emt 0:00:00]} e6 {[%emt 0:00:06]} 4. Nc3 {[%emt 0:00:00]} exd5 {[%emt 0:00:04]} 5. cxd5 {[%emt 0:00:03]} d6 {[%emt 0:00:06]} 6. Nf3 {[%emt 0:00:05]} g6 {[%emt 0:00:16]} 7. g3 {[%emt 0:00:13]} Bg7 {[%emt 0:00:07]} 8. Bg2 {[%emt 0:00:04]} O-O {[%emt 0:00:05]} 9. O-O {[%emt 0:00:06]} Re8 {[%emt 0:00:32]} 10. Bf4 {[%emt 0:00:07]} Na6 {[%emt 0:00:46]} 11. Re1 {[%emt 0:02:03] LiveBook: 132 Games A62: Modern Benoni: Fianchetto Variation without early ...Nbd7} Bg4 {[%emt 0:01:09]} 12. h3 {[%emt 0:01:32]} Bxf3 {[%emt 0:00:07]} 13. Bxf3 {[%emt 0:00:05]} Nd7 {[%emt 0:00:14]} 14. e4 {[%emt 0:03:04]} (14. Ne4 Ne5 15. Bg2 Nc7 16. g4 f5 17. gxf5 gxf5 18. Bg5 Qd7 {½-½ (66) Wojtaszek,R (2737)-Zhigalko,S (2638) Heraklio 2017}) 14... Qe7 {[%emt 0:06:53]} 15. Qd2 {[%emt 0:01:37] [#]} Rab8 $146 {[%emt 0:08:08]} ({Predecessor:} 15... Nc7 16. Be2 a6 17. a4 Rab8 18. Bf1 Bd4 19. Kg2 h5 20. Bg5 Qf8 21. Bh6 Qe7 22. Bg5 Qf8 23. Bh6 Qe7 {½-½ (23) Shinkevich,V (2474)-Fedorov,A (2598) Izhevsk 2011}) 16. a4 {[%emt 0:09:23]} Nb4 {[%emt 0:01:48]} 17. Be2 {[%emt 0:06:38]} a6 {[%emt 0:04:56]} 18. Bg5 {[%emt 0:09:51]} Qf8 {[%emt 0:02:54]} 19. Kg2 {[%emt 0:01:58]} Rbc8 {[%emt 0:05:28]} 20. Bg4 {[%emt 0:11:09]} Rc7 {[%emt 0:01:32]} 21. Bxd7 {[%emt 0:08:14]} ({Günstiger ist} 21. Rac1 $11) 21... Rxd7 {[%emt 0:00:15]} 22. a5 {[%emt 0:00:23]} h6 {[%emt 0:09:21]} 23. Be3 {[%emt 0:00:21]} Kh7 {[%emt 0:01:13]} 24. Rad1 {[%emt 0:19:24]} f5 {[%emt 0:04:17]} 25. exf5 {[%emt 0:00:09]} Qxf5 {[%emt 0:01:47]} 26. Bd4 $11 {[%emt 0:08:25]} cxd4 {[%emt 0:15:24]} 27. Rxe8 {[%emt 0:00:13]} dxc3 {[%emt 0:01:56]} 28. bxc3 {[%emt 0:00:07]} Nc2 {[%emt 0:01:12]} 29. Qe2 {[%emt 0:02:16]} Na3 {[%emt 0:08:06]} 30. c4 {[%emt 0:05:02]} Be5 {[%emt 0:08:54]} 31. Rd3 {[%emt 0:02:24]} Nb1 {[%emt 0:05:23]} 32. f4 {[%emt 0:00:46]} Bg7 {[%emt 0:02:12]} 33. Qc2 {[%emt 0:01:01]} Nc3 {[%emt 0:02:42]} 34. Rxc3 {[%emt 0:00:06]} Bxc3 {[%emt 0:00:16]} 35. Qxc3 {[%emt 0:00:07]} Rg7 {[%emt 0:00:11]} 36. Re3 {[%emt 0:02:26]} Rc7 {[%emt 0:00:46]} 37. Qb2 {[%emt 0:06:56]} h5 {[%emt 0:00:42]} 38. Qe2 {[%emt 0:00:20]} Kh6 {[%emt 0:00:33]} 39. Re6 {[%emt 0:01:12]} h4 {[%emt 0:00:26]} 40. Qe4 {[%emt 0:01:33]} 1/2-1/2

[Event "Guimaraes Open 2018"]
[Site "Guimaraes"]
[Date "2018.10.07"]
[Round "6"]
[White "Guimaraes, Rui Pinto"]
[Black "Silva, Pedro Gil Ferreira "]
[Result "1-0"]
[ECO "B11"]
[WhiteElo "2143"]
[BlackElo "1837"]
[Annotator "NA"]
[PlyCount "67"]
[EventDate "2018.10.04"]
[EventType "swiss"]
[EventCountry "POR"]
[SourceTitle "playchess.com"]
[Source "ChessBase"]
[SourceQuality "1"]
[TimeControl "5400+30"]

1. e4 {[%emt 0:09:45]} c6 {[%emt 0:00:00]} 2. Nc3 {[%emt 0:00:53]} d5 {[%emt 0:00:24]} 3. Nf3 {[%emt 0:00:10]} Bg4 {[%emt 0:00:20]} 4. h3 {[%emt 0:00:17]} Bxf3 {[%emt 0:00:23]} 5. Qxf3 {[%emt 0:06:46]} e6 {[%emt 0:02:07]} 6. d4 {[%emt 0:05:05]} dxe4 {[%emt 0:03:27]} 7. Nxe4 {[%emt 0:01:56]} Qxd4 {[%emt 0:10:17]} 8. Bd3 {[%emt 0:01:19]} Nd7 {[%emt 0:01:39]} 9. Be3 {[%emt 0:09:10]} Qd5 {[%emt 0:12:32]} 10. Rd1 {[%emt 0:22:16] LiveBook: 6 Partien} Ne5 {[%emt 0:06:02]} 11. Qf4 {[%emt 0:07:48]} Bb4+ {[%emt 0:14:35]} ({Better is} 11... Qa5+ $15 12. Bd2 Nxd3+ 13. cxd3 Qxa2) 12. Ke2 {[%emt 0:01:51]} Ng6 {[%emt 0:17:18] [#]} (12... Be7 $11) 13. Qc7 $16 {[%emt 0:09:31]} Qd7 {[%emt 0:01:16]} 14. Qg3 {[%emt 0:02:59]} e5 {[%emt 0:10:52]} 15. Ng5 {[%emt 0:05:54]} Nf4+ {[%emt 0:02:31]} 16. Bxf4 {[%emt 0:02:50]} exf4 {[%emt 0:00:16]} 17. Qxf4 {[%emt 0:00:10]} Qe7+ {[%emt 0:06:41]} 18. Kf1 {[%emt 0:04:36]} Nf6 {[%emt 0:02:19]} 19. Qh4 {[%emt 0:02:21]} O-O-O {[%emt 0:04:19]} 20. Nxf7 {[%emt 0:00:17]} Qxf7 {[%emt 0:00:26]} 21. Qxb4 {[%emt 0:00:02]} Nd5 {[%emt 0:01:33]} 22. Qg4+ {[%emt 0:00:33]} Kb8 {[%emt 0:00:10]} 23. Kg1 {[%emt 0:00:39]} Rhf8 {[%emt 0:00:21]} 24. Qg3+ {[%emt 0:00:28]} Ka8 {[%emt 0:00:20]} 25. Bc4 {[%emt 0:01:25]} Qf5 {[%emt 0:01:00]} 26. Bxd5 {[%emt 0:00:46]} Qxc2 {[%emt 0:00:58]} 27. Qb3 {[%emt 0:02:11]} Qxf2+ {[%emt 0:00:14]} 28. Kh2 {[%emt 0:00:04]} Qf4+ {[%emt 0:00:23]} 29. g3 {[%emt 0:00:41]} Qf2+ {[%emt 0:00:35]} 30. Bg2 {[%emt 0:00:06]} Rde8 {[%emt 0:00:15]} 31. Rhf1 {[%emt 0:00:38]} Qe2 {[%emt 0:01:34]} 32. Rd7 {[%emt 0:01:21]} b6 {[%emt 0:00:32]} 33. Rxf8 {[%emt 0:00:40]} Rxf8 {[%emt 0:00:06]} 34. Qa3 {[%emt 0:00:20]} 1-0

[Event "Guimaraes Open 2018"]
[Site "Guimaraes"]
[Date "2018.10.07"]
[Round "6"]
[White "Ferreira, Hugo Miguel Da Cost"]
[Black "Calzada Cruz, Osvaldo"]
[Result "1-0"]
[ECO "A40"]
[WhiteElo "2130"]
[BlackElo "1752"]
[Annotator "NA"]
[PlyCount "73"]
[EventDate "2018.10.04"]
[EventType "swiss"]
[EventCountry "POR"]
[SourceTitle "playchess.com"]
[Source "ChessBase"]
[SourceQuality "1"]
[TimeControl "5400+30"]

{[%evp 9,68,30,32767,32767,43,32767,42,32767,32767,32767,32767,32767,32767,32767,32767,32767,32767,163,153,32767,147,141,32767,32767,32767,32767,32767,159,203,221,32767,444,414,530,32767,568,554,566,687,694,758,788,842,706,32767,485,32767,32767,468,488,32767,32767,683,910,32767,32767,502,478,32767,499,742]} 1. d4 {[%emt 0:05:54]} e6 {[%emt 0:00:00]} 2. Nf3 {[%emt 0:00:35]} Nf6 {[%emt 0:00:24]} 3. Bf4 {[%emt 0:00:26]} Bb4+ {[%emt 0:01:26]} 4. c3 {[%emt 0:00:10]} Bd6 {[%emt 0:00:21]} 5. Bg5 {[%emt 0:00:12]} h6 {[%emt 0:00:21]} 6. Bh4 {[%emt 0:00:06]} b6 {[%emt 0:01:13]} 7. Nbd2 {[%emt 0:00:26]} Bb7 {[%emt 0:00:42]} 8. Qb1 {[%emt 0:01:16]} g5 {[%emt 0:00:43]} 9. Bg3 {[%emt 0:00:10]} Qe7 {[%emt 0:00:59]} 10. b4 {[%emt 0:07:29]} Nd5 {[%emt 0:06:02]} 11. Qb2 {[%emt 0:02:29]} Bxg3 {[%emt 0:16:31]} 12. hxg3 {[%emt 0:00:13]} Nc6 {[%emt 0:01:30]} 13. e4 {[%emt 0:01:39]} Nf6 {[%emt 0:03:12]} 14. Nxg5 {[%emt 0:00:36]} Ng4 {[%emt 0:00:39]} 15. Nh3 {[%emt 0:00:53]} f5 {[%emt 0:06:40]} 16. Be2 {[%emt 0:02:57]} a5 {[%emt 0:00:17]} 17. bxa5 {[%emt 0:03:57]} Nxa5 {[%emt 0:00:18]} 18. O-O {[%emt 0:02:01]} h5 {[%emt 0:00:53] [#]} 19. exf5 $1 {[%emt 0:00:59]} exf5 {[%emt 0:01:36]} 20. Rfe1 {[%emt 0:01:01]} Be4 {[%emt 0:07:33]} 21. f3 {[%emt 0:01:41]} Qd6 {[%emt 0:04:49]} 22. fxe4 {[%emt 0:00:28]} Qxg3 {[%emt 0:03:32]} 23. Nf1 {[%emt 0:00:07]} Qh4 {[%emt 0:00:28]} 24. exf5 {[%emt 0:01:26]} O-O-O {[%emt 0:00:11]} 25. Bf3 {[%emt 0:00:10]} d5 {[%emt 0:01:19]} 26. Nf4 {[%emt 0:01:55]} Nc4 {[%emt 0:01:59]} 27. Qb5 {[%emt 0:03:31]} Qf2+ {[%emt 0:06:23]} 28. Kh1 {[%emt 0:00:05]} Qh4+ {[%emt 0:00:21]} 29. Nh3 {[%emt 0:00:06]} Nf2+ {[%emt 0:08:41]} 30. Kh2 {[%emt 0:00:05]} Ng4+ {[%emt 0:00:32]} (30... Kb8 $142 31. Bxd5 Na3) 31. Kg1 {[%emt 0:00:04]} Nf6 {[%emt 0:14:25]} 32. Bxd5 {[%emt 0:02:23]} Nxd5 {[%emt 0:03:21]} 33. Qxc4 {[%emt 0:00:06]} Rhg8 {[%emt 0:00:30]} 34. Qd3 {[%emt 0:01:01]} Rg4 $18 {[%emt 0:04:25]} (34... Qg4 $142 35. Re2 Nxc3) 35. Qf3 {[%emt 0:00:35]} Rdg8 {[%emt 0:02:25]} 36. Re2 {[%emt 0:00:29]} Rf4 {[%emt 0:01:22]} 37. Qxd5 {[%emt 0:00:15]} 1-0